bitfinex-derivatives/quotes_SOLF0:USTF0_20250114
["timestamp","ask_amount","ask_price","bid_price","bid_amount"]
[1736869270090,2.6636,187.78,187.67,23.23064425]
[1736869271686,155.2298,187.83,187.73,2.6642]
[1736869271880,155.2298,187.82,187.7,21.64874425]
[1736869272081,155.2298,187.82,187.73,21.64874425]
[1736869272288,161.0657,187.88,187.76,21.64874425]
[1736869272486,5.8359,187.88,187.76,21.64874425]
[1736869272691,8.4981,187.88,187.82,2.6629]
[1736869272897,5.8359,187.88,187.82,2.6629]
[1736869273101,5.8359,187.88,187.76,21.64874425]
[1736869273296,5.8359,187.88,187.73,21.64874425]
[1736869273702,2.6623,187.87,187.81,2.6631]
[1736869274099,5.78,187.88,187.73,21.64874425]
[1736869274299,5.78,187.88,187.83,2.6628]
[1736869274503,5.78,187.88,187.73,21.64874425]
[1736869275302,5.78,187.88,187.77,2.6636]
[1736869275303,2.6625,187.86,187.77,2.6636]
[1736869275502,21.64874425,187.87,187.73,21.64874425]
[1736869276394,2.6628,187.84,187.78,2.6635]
[1736869276793,2.6626,187.85,187.79,2.6633]
[1736869277301,2.6629,187.83,187.77,2.6636]
[1736869277699,2.6629,187.83,187.71,3.1831]
[1736869278200,155.2298,187.86,187.73,21.64874425]
[1736869278608,157.8924,187.86,187.76,2.6637]
[1736869278906,155.2298,187.86,187.73,21.64874425]
[1736869279805,155.2298,187.86,187.79,2.6634]
[1736869279806,157.8924,187.86,187.79,2.6634]
[1736869280208,155.2298,187.86,187.79,2.6634]
[1736869280504,157.8923,187.86,187.73,21.64874425]
[1736869280707,155.2298,187.86,187.73,21.64874425]
[1736869281905,2.6626,187.85,187.79,2.6633]
[1736869282108,155.2298,187.86,187.71,3.1831]
[1736869283298,2.6627,187.85,187.71,3.1831]
[1736869283799,2.663,187.82,187.76,2.6638]
[1736869284009,21.64874425,187.84,187.71,3.1831]
[1736869284203,21.64874425,187.81,187.71,3.1831]
[1736869284410,27.42874425,187.81,187.71,3.1831]
[1736869284610,30.09204425,187.81,187.75,2.664]
[1736869284908,27.42874425,187.81,187.71,3.1831]
[1736869285311,5.78,187.81,187.71,3.1831]
[1736869285700,155.2298,187.86,187.76,2.6637]
[1736869285906,155.2298,187.86,187.73,21.64874425]
[1736869286413,155.2298,187.86,187.81,2.6631]
[1736869286710,155.2298,187.86,187.73,21.64874425]
[1736869286907,155.2298,187.91,187.84,2.6627]
[1736869287103,5.78,187.9,187.76,21.64874425]
[1736869287411,8.4419,187.9,187.84,2.6626]
[1736869287912,8.4419,187.9,187.77,1.675]
[1736869287913,2.6621,187.89,187.83,2.6628]
[1736869289200,27.42874425,187.9,187.83,2.6628]
[1736869289406,2.6623,187.87,187.82,2.663]
[1736869290003,27.42874425,187.9,187.82,2.663]
[1736869290206,27.42874425,187.9,187.8,2.6632]
[1736869290406,27.42874425,187.9,187.77,1.675]
[1736869290710,2.6626,187.86,187.81,2.663]
[1736869291908,2.6628,187.84,187.72,5.3288]
[1736869292108,5.78,187.83,187.72,5.3288]
[1736869292308,5.78,187.83,187.73,21.64874425]
[1736869292514,5.78,187.83,187.82,2.663]
[1736869292812,5.78,187.83,187.73,21.64874425]
[1736869293712,5.78,187.83,187.82,2.663]
[1736869294311,5.78,187.83,187.73,21.64874425]
[1736869294511,5.78,187.83,187.81,2.6631]
[1736869295518,5.78,187.83,187.8,2.6632]
[1736869295911,5.78,187.83,187.73,21.64874425]
[1736869296106,5.78,187.83,187.72,5.3288]
[1736869296413,21.64874425,187.97,187.79,21.64874425]
[1736869296611,2.6613,187.95,187.82,21.64874425]
[1736869296917,0.0597,187.99,187.82,21.64874425]
[1736869297114,5.78,187.98,187.85,21.64874425]
[1736869297316,5.78,187.98,187.8,4.9264]
[1736869297317,5.78,187.98,187.88,13.46026836]
[1736869298114,5.78,187.98,187.89,3.3084]
[1736869299118,5.78,187.98,187.92,2.6616]
[1736869299923,155.2298,188.0,187.89,3.3084]
[1736869300118,155.2298,188.0,187.9,1.5949]
[1736869300311,21.53727289,188.05,187.91,21.53727289]
[1736869300520,5.78,188.04,187.91,21.53727289]
[1736869301416,2.6596,188.06,187.91,21.53727289]
[1736869301618,5.78,188.06,187.91,21.53727289]
[1736869302221,2.6599,188.04,187.91,21.53727289]
[1736869302520,27.31727289,188.07,187.91,21.53727289]
[1736869302718,2.6596,188.06,187.99,2.6606]
[1736869303020,27.31727289,188.07,187.91,21.53727289]
[1736869303220,29.97687289,188.07,187.99,2.6605]
[1736869303417,27.31727289,188.07,187.99,2.6605]
[1736869304227,2.6598,188.05,187.99,2.6605]
[1736869305115,2.6599,188.04,187.99,2.6605]
[1736869305420,2.6599,188.04,187.91,21.53727289]
[1736869305421,2.6599,188.04,188.0,2.6604]
[1736869305819,2.6597,188.05,188.0,2.6604]
[1736869306215,21.53727289,188.1,188.03,2.66]
[1736869306414,5.78,188.09,187.97,21.53727289]
[1736869306618,5.78,188.09,187.98,4.8971]
[1736869306923,8.4393,188.09,188.04,2.6598]
[1736869307119,5.78,188.09,188.04,2.6598]
[1736869307922,2.6595,188.08,188.04,2.6598]
[1736869308121,5.78,188.09,188.03,2.66]
[1736869308330,5.78,188.09,187.98,4.8971]
[1736869308716,2.6593,188.08,188.04,2.6599]
[1736869309621,2.6595,188.07,188.03,2.66]
[1736869310218,2.6597,188.05,188.01,2.6602]
[1736869310418,21.53727289,188.07,187.98,3.2486]
[1736869311226,2.66,188.04,188.0,2.6603]
[1736869311420,21.53727289,188.07,187.98,3.2486]
[1736869311921,2.6598,188.05,188.01,2.6602]
[1736869313325,21.53727289,188.07,187.98,3.2486]
[1736869313520,21.53727289,188.07,188.0,2.6604]
[1736869313825,21.53727289,188.07,187.98,3.2486]
[1736869315325,21.53727289,188.04,187.92,1.6644]
[1736869315717,2.6602,188.02,187.98,2.6607]
[1736869315917,21.53727289,188.04,187.92,1.6644]
[1736869315918,5.78,188.03,187.92,1.6644]
[1736869316324,2.6603,188.01,187.96,2.6609]
[1736869317024,2.6606,187.99,187.94,2.6613]
[1736869317523,2.6605,188.0,187.95,2.6612]
[1736869319320,2.6605,188.0,187.96,2.661]
[1736869319828,2.6606,187.99,187.96,2.661]
[1736869320126,21.53727289,188.01,187.96,2.661]
[1736869320517,2.6605,188.0,187.96,2.661]
[1736869320924,21.53727289,188.01,187.96,2.661]
[1736869321324,13.45936233,188.0,187.96,2.661]
[1736869322020,16.11986233,188.0,187.96,2.661]
[1736869322222,13.45936233,188.0,187.96,2.661]
[1736869322432,13.45936233,187.97,187.86,1.5507]
[1736869322617,13.45936233,187.93,187.86,1.5507]
[1736869322823,19.23936233,187.96,187.91,2.6617]
[1736869323017,2.6613,187.94,187.86,1.5507]
[1736869323321,13.45936233,187.93,187.86,1.5507]
[1736869323527,21.90046233,187.96,187.86,1.5507]
[1736869323933,5.78,187.96,187.89,2.6619]
[1736869324132,5.78,187.96,187.87,13.45936233]
[1736869324425,5.78,187.96,187.89,2.6619]
[1736869324622,5.78,187.96,187.87,13.45936233]
[1736869325226,5.78,187.96,187.92,2.6615]
[1736869325631,5.78,187.96,187.87,13.45936233]
[1736869326529,5.78,187.96,187.93,2.6614]
[1736869326728,155.2891,188.02,187.9,13.45936233]
[1736869326729,5.78,188.01,187.9,13.45936233]
[1736869326934,155.2298,188.02,187.93,13.45936233]
[1736869327121,155.2298,188.02,187.96,2.661]
[1736869327326,155.2298,188.02,187.94,1.6531]
[1736869327839,155.2298,188.02,187.98,2.6607]
[1736869328036,155.2298,188.02,187.94,1.6531]
[1736869328340,5.78,188.03,187.94,1.6531]
[1736869328341,168.68916233,188.08,187.96,13.45936233]
[1736869328732,171.34856233,188.08,187.96,13.45936233]
[1736869329038,168.68916233,188.08,188.02,2.6601]
[1736869329334,155.2298,188.08,188.02,2.6601]
[1736869329829,155.2298,188.08,187.95,23.17212001]
[1736869330735,2.6589,188.11,188.05,2.6597]
[1736869331232,5.78,188.11,187.99,1.6275]
[1736869331436,155.2298,188.15,188.01,21.51602001]
[1736869331632,8.4385,188.14,188.02,1.6381]
[1736869331937,155.2298,188.15,188.02,1.6381]
[1736869332128,5.78,188.14,188.02,1.6381]
[1736869332933,8.4385,188.14,188.07,2.6593]
[1736869333236,155.2298,188.15,188.02,1.6381]
[1736869333435,5.78,188.14,188.02,1.6381]
[1736869333632,2.6586,188.13,188.07,2.6593]
[1736869333835,2.6586,188.13,188.02,1.6381]
[1736869334138,2.6586,188.13,188.08,2.6593]
[1736869335036,2.6588,188.12,188.08,2.6593]
[1736869335437,5.78,188.14,188.08,2.6593]
[1736869335829,2.6587,188.13,188.08,2.6593]
[1736869336436,2.6589,188.11,188.07,2.6595]
[1736869336639,21.51602001,188.08,187.99,1.6275]
[1736869336936,5.78,188.07,187.97,8.92217783]
[1736869337242,161.0098,188.07,187.97,8.92217783]
[1736869337941,161.0098,188.07,187.97,1.5785]
[1736869339442,161.0098,188.07,188.03,2.66]
[1736869339836,161.0098,188.07,187.97,1.5785]
[1736869340643,163.6694,188.07,188.01,2.6602]
[1736869340845,161.0098,188.07,187.97,1.5785]
[1736869341045,5.78,188.07,188.05,2.6597]
[1736869341346,21.51602001,188.16,187.99,21.51602001]
[1736869341647,8.4386,188.13,188.07,2.6593]
[1736869342044,5.78,188.13,187.99,21.51602001]
[1736869342248,5.78,188.13,188.09,2.6591]
[1736869343238,5.78,188.13,188.1,2.659]
[1736869343444,5.78,188.13,188.02,21.51602001]
[1736869343645,24.17432001,188.16,188.03,1.6909]
[1736869343949,2.6584,188.15,188.03,1.6909]
[1736869344148,27.29602001,188.16,188.03,1.6909]
[1736869344336,27.29602001,188.16,188.07,2.6594]
[1736869344540,2.6588,188.12,188.07,2.6594]
[1736869345051,27.29602001,188.16,188.03,1.6909]
[1736869345052,2.6591,188.1,188.06,2.6595]
[1736869345544,2.6589,188.11,188.03,1.6909]
[1736869345847,21.51602001,188.1,187.97,1.5785]
[1736869346148,2.6594,188.08,188.03,2.6599]
[1736869348046,2.6594,188.08,188.04,2.6599]
[1736869348651,5.78,188.09,187.97,1.5785]
[1736869349548,5.78,188.09,187.98,21.51602001]
[1736869349754,21.51602001,188.13,188.06,2.6595]
[1736869349952,5.78,188.12,188.06,2.6595]
[1736869350354,2.659,188.11,188.06,2.6595]
[1736869350756,5.78,188.12,188.08,2.6593]
[1736869351054,161.0098,188.15,188.01,21.51602001]
[1736869351464,161.0098,188.15,188.1,2.6589]
[1736869352168,161.0098,188.15,188.05,3.2631]
[1736869352369,161.0098,188.15,188.11,2.6588]
[1736869352562,155.2298,188.15,188.06,1.5846]
[1736869352971,155.2298,188.15,188.12,2.6586]
[1736869353861,155.2298,188.15,188.13,2.6586]
[1736869354264,155.2298,188.15,188.06,1.5846]
[1736869354964,155.2298,188.15,188.08,2.6592]
[1736869355163,155.2298,188.15,188.06,1.5846]
[1736869355561,2.6585,188.14,188.06,1.5846]
[1736869356167,2.6585,188.14,188.09,2.6591]
[1736869356365,16.09522814,188.13,188.06,1.5846]
[1736869356565,13.43662814,188.13,188.06,1.5846]
[1736869356764,13.43662814,188.13,188.06,2.6595]
[1736869356964,13.43662814,188.13,188.01,13.43662814]
[1736869357274,13.43662814,188.1,188.04,2.6597]
[1736869357473,2.6593,188.09,188.04,2.6597]
[1736869358070,13.43662814,188.1,188.0,4.95]
[1736869358071,19.21662814,188.1,188.0,4.95]
[1736869358276,13.43662814,188.07,188.0,4.95]
[1736869358571,13.43662814,188.07,187.95,22.42860597]
[1736869359178,2.6598,188.05,187.95,22.42860597]
[1736869359378,2.6598,188.05,187.95,15.08492814]
[1736869359774,2.6598,188.05,187.99,2.6605]
[1736869361372,2.6598,188.05,187.98,2.6607]
[1736869361572,2.6598,188.05,187.95,15.08492814]
[1736869361771,16.09652814,188.04,187.95,15.08492814]
[1736869361969,13.43662814,188.04,187.95,1.6483]
[1736869362579,5.78,188.03,187.95,1.6483]
[1736869362780,13.43662814,188.01,187.93,3.1608]
[1736869363078,2.6607,187.99,187.89,22.42020597]
[1736869363573,13.43662814,187.98,187.89,22.42020597]
[1736869363782,16.09742814,187.98,187.89,22.42020597]
[1736869363980,16.09742814,187.98,187.89,15.07652814]
[1736869364675,16.09742814,187.98,187.93,2.6614]
[1736869366373,13.43662814,187.98,187.91,2.6616]
[1736869366578,13.43662814,187.98,187.89,15.07652814]
[1736869366984,13.43662814,187.98,187.93,2.6614]
[1736869367776,16.09742814,187.98,187.93,2.6614]
[1736869369686,16.09742814,187.98,187.89,15.07652814]
[1736869369885,16.09742814,187.98,187.94,2.6613]
[1736869370487,13.43662814,188.01,187.89,15.07652814]
[1736869370683,13.43662814,188.01,187.92,13.43662814]
[1736869370883,155.2298,188.02,187.92,13.43662814]
[1736869371083,155.2298,188.02,187.99,2.6605]
[1736869371284,155.2298,188.02,187.92,13.43662814]
[1736869371476,155.2298,188.02,187.95,13.43662814]
[1736869371687,5.78,188.07,187.96,3.2934]
[1736869372485,5.78,188.07,188.03,2.66]
[1736869372788,5.78,188.07,187.96,3.2934]
[1736869373182,5.78,188.07,188.03,2.6599]
[1736869373385,5.78,188.07,187.98,13.43662814]
[1736869373584,5.78,188.07,188.03,2.6599]
[1736869373985,5.78,188.07,187.98,13.43662814]
[1736869374186,5.78,188.07,188.05,2.6597]
[1736869374390,5.78,188.1,187.98,13.43662814]
[1736869374690,16.09552814,188.11,188.01,2.6602]
[1736869374890,5.78,188.1,187.98,13.43662814]
[1736869375086,8.4391,188.1,187.98,13.43662814]
[1736869375285,8.4391,188.1,188.05,2.6597]
[1736869375988,2.6591,188.1,188.05,2.6597]
[1736869376290,8.4391,188.1,188.05,2.6597]
[1736869376589,13.43662814,188.11,187.98,13.43662814]
[1736869376783,5.78,188.1,188.07,2.6594]
[1736869377788,5.78,188.1,187.98,13.43662814]
[1736869377989,5.78,188.1,187.97,1.5755]
[1736869377990,13.43662814,188.08,187.97,1.5755]
[1736869379883,2.6598,188.05,188.0,2.6603]
[1736869380289,13.43662814,188.05,187.97,1.5755]
[1736869380491,13.43662814,188.05,187.96,1.7038]
[1736869380691,13.43662814,188.02,187.92,13.43662814]
[1736869380895,19.21662814,188.02,187.92,13.43662814]
[1736869381099,21.87692814,188.02,187.97,2.6608]
[1736869381500,19.21662814,188.02,187.97,2.6608]
[1736869381697,2.6603,188.01,187.97,2.6608]
[1736869382395,19.21662814,188.02,187.95,2.6612]
[1736869382396,21.87682814,188.02,187.95,2.6612]
[1736869382596,21.87682814,188.02,187.92,13.43662814]
[1736869383002,5.78,188.02,187.92,13.43662814]
[1736869383594,16.09642814,188.05,187.95,2.6612]
[1736869383794,21.87642814,188.05,187.92,13.43662814]
[1736869384704,2.66,188.03,187.92,13.43662814]
[1736869384895,19.21662814,188.05,187.92,13.43662814]
[1736869385197,13.43662814,188.02,187.92,13.43662814]
[1736869385598,2.6604,188.01,187.96,2.6609]
[1736869385899,2.6604,188.01,187.92,13.43662814]
[1736869386099,13.43662814,188.02,187.92,13.43662814]
[1736869387199,16.09682814,188.02,187.97,2.6609]
[1736869387399,13.43662814,188.02,187.91,1.6866]
[1736869387600,2.6605,188.0,187.94,2.6613]
[1736869387800,2.6605,188.0,187.91,1.6866]
[1736869388502,13.43662814,188.02,187.91,1.6866]
[1736869388706,2.6603,188.01,187.91,1.6866]
[1736869390203,2.6603,188.01,187.96,2.6609]
[1736869390608,2.6606,187.99,187.95,2.6611]
[1736869390898,13.43662814,188.02,187.95,2.6611]
[1736869391299,2.6605,188.0,187.91,1.6866]
[1736869391497,2.6605,188.0,187.96,2.661]
[1736869391701,13.43662814,188.02,187.91,1.6866]
[1736869391903,16.09682814,188.02,187.97,2.6607]
[1736869393299,16.09682814,188.02,187.91,1.6866]
[1736869393500,16.09682814,188.02,187.98,2.6607]
[1736869394101,16.09682814,188.02,187.99,2.6606]
[1736869398814,2.6603,188.01,187.98,2.6607]
[1736869399409,13.43662814,188.02,187.92,13.43662814]
[1736869399615,16.09682814,188.02,188.0,2.6604]
[1736869399808,16.09682814,188.02,187.92,13.43662814]
[1736869400211,16.09682814,188.02,187.99,2.6605]
[1736869400413,13.43662814,188.02,187.99,2.6605]
[1736869400613,2.6603,188.01,187.99,2.6605]
[1736869400911,155.2298,188.04,187.91,1.6866]
[1736869401117,155.2298,188.04,187.95,13.43662814]
[1736869401611,13.43662814,188.01,187.91,1.6866]
[1736869402216,2.6606,188.0,187.94,2.6613]
[1736869402515,2.6606,188.0,187.91,1.6866]
[1736869402715,13.43662814,188.01,187.91,1.6866]
[1736869402917,2.6607,187.98,187.91,1.6866]
[1736869403113,13.43662814,188.01,187.91,1.6866]
[1736869403314,13.43662814,188.01,187.94,2.6612]
[1736869403711,2.6606,187.99,187.91,1.6866]
[1736869403913,2.6606,187.99,187.95,2.6611]
[1736869404112,13.43662814,188.01,187.91,1.6866]
[1736869404314,2.6602,188.02,187.91,1.6866]
[1736869405022,2.6602,188.02,187.97,2.6608]
[1736869405419,13.43662814,188.01,187.91,1.6866]
[1736869405715,155.2298,188.04,187.91,1.6866]
[1736869406017,13.43662814,188.02,187.92,13.43662814]
[1736869406420,16.09682814,188.02,187.95,2.6612]
[1736869406614,16.09682814,188.02,187.92,13.43662814]
[1736869407019,16.09682814,188.02,187.98,2.6607]
[1736869407419,8.6111222,188.01,187.98,2.6607]
[1736869407820,8.6111222,188.01,187.97,2.6608]
[1736869409620,8.6111222,188.01,187.98,2.6606]
[1736869410026,8.6111222,188.01,187.95,8.6111222]
[1736869410223,8.6111222,188.03,188.01,2.6603]
[1736869410423,8.6111222,188.03,187.95,8.6111222]
[1736869411229,8.6111222,188.03,188.0,2.6604]
[1736869411927,155.2298,188.04,187.97,8.6111222]
[1736869412225,14.3911222,188.05,187.97,8.6111222]
[1736869412629,14.3911222,188.05,188.02,2.66]
[1736869412825,14.3911222,188.05,187.91,31.06131132]
[1736869413028,8.6111222,188.05,187.99,8.6111222]
[1736869414029,8.6111222,188.05,187.93,5.3229]
[1736869414231,8.6111222,188.05,187.98,8.6111222]
[1736869414930,8.6111222,188.05,188.03,2.66]
[1736869415526,8.6111222,188.05,187.94,8.6111222]
[1736869415830,8.6111222,188.0,187.94,8.6111222]
[1736869417433,8.6111222,188.0,187.98,2.6607]
[1736869421531,146.98678704,188.13,187.98,8.6111222]
[1736869421734,8.6111222,188.06,187.98,8.6111222]
[1736869422434,8.6111222,188.06,188.04,2.6598]
[1736869422633,8.6111222,188.06,188.0,8.6111222]
[1736869422941,8.6111222,188.06,187.99,3.3594]
[1736869422942,155.2298,188.12,188.06,2.6595]
[1736869423133,14.3911222,188.11,188.04,8.6111222]
[1736869423331,155.2298,188.12,188.04,8.6111222]
[1736869423531,14.3911222,188.12,188.11,2.6588]
[1736869423834,8.6111222,188.14,188.08,8.6111222]
[1736869424230,251.90058704,188.26,188.0,1.598]
[1736869424231,2.6579,188.19,188.13,2.6585]
[1736869424436,8.6111222,188.16,188.1,8.6111222]
[1736869426134,8.6111222,188.16,188.14,2.6584]
[1736869427335,19.19300804,188.18,188.14,2.6584]
[1736869428634,13.43300804,188.18,188.08,4.8458]
[1736869429331,13.43300804,188.18,188.16,2.6581]
[1736869429733,13.43300804,188.21,188.1,13.43300804]
[1736869430032,5.76,188.2,188.18,2.6578]
[1736869430428,19.19300804,188.21,188.18,2.6578]
[1736869431136,5.76,188.22,188.19,2.6577]
[1736869432838,5.76,188.22,188.1,13.43300804]
[1736869433034,13.43300804,188.21,188.1,13.43300804]
[1736869433238,13.43300804,188.21,188.08,4.8458]
[1736869433440,13.43300804,188.18,188.08,4.8458]
[1736869434237,13.43300804,188.15,188.08,4.8458]
[1736869434434,19.19300804,188.15,188.08,4.8458]
[1736869434633,19.19300804,188.15,188.08,2.6592]
[1736869434634,13.43300804,188.12,188.08,2.6592]
[1736869434838,13.43300804,188.12,188.02,1.5736]
[1736869435244,16.09180804,188.12,188.07,2.6595]
[1736869437244,16.09180804,188.12,188.02,1.5736]
[1736869437540,16.09180804,188.12,188.08,2.6593]
[1736869439341,16.09180804,188.12,188.09,2.6592]
[1736869440544,13.43300804,188.12,188.09,2.6592]
[1736869440939,19.19300804,188.15,188.02,1.5736]
[1736869441136,5.76,188.14,188.04,13.43300804]
[1736869441335,155.2298,188.18,188.04,13.43300804]
[1736869441538,5.76,188.17,188.04,13.43300804]
[1736869441947,13.43300804,188.13,188.02,1.5736]
[1736869442241,2.6588,188.12,188.02,1.5736]
[1736869442645,13.43300804,188.13,188.1,2.659]
[1736869442839,13.43300804,188.14,188.1,2.659]
[1736869443047,13.43300804,188.14,188.03,13.43300804]
[1736869443340,2.6588,188.12,188.06,2.6596]
[1736869443533,2.6588,188.12,188.03,13.43300804]
[1736869444035,2.6588,188.12,188.07,2.6594]
[1736869444842,13.43300804,188.11,188.05,2.6597]
[1736869445147,5.76,188.1,188.02,1.5736]
[1736869445347,5.76,188.1,188.07,2.6594]
[1736869446141,5.76,188.1,188.08,2.6593]
[1736869446748,5.76,188.1,188.02,1.5736]
[1736869446949,5.76,188.1,188.09,2.6592]
[1736869447140,155.2298,188.16,188.03,13.43300804]
[1736869447141,13.43300804,188.17,188.06,13.43300804]
[1736869447339,99.54,188.26,188.07,1.5831]
[1736869447340,13.43300804,188.2,188.07,1.5831]
[1736869447543,5.76,188.19,188.15,2.6582]
[1736869447951,5.76,188.19,188.13,2.6585]
[1736869448350,2.6584,188.15,188.08,1.6286]
[1736869448550,2.6584,188.15,188.11,2.6589]
[1736869449044,2.6582,188.16,188.11,2.6589]
[1736869449654,2.6582,188.16,188.12,2.6587]
[1736869451153,16.09110804,188.17,188.13,2.6586]
[1736869451341,13.43300804,188.17,188.07,1.5831]
[1736869451651,13.43300804,188.17,188.15,2.6582]
[1736869451946,8.4179,188.19,188.15,2.6582]
[1736869452541,8.4179,188.19,188.07,15.01610804]
[1736869452747,8.4179,188.19,188.16,2.6582]
[1736869453050,5.76,188.19,188.07,15.01610804]
[1736869453250,5.76,188.18,188.07,15.01610804]
[1736869455047,5.76,188.18,188.14,2.6583]
[1736869455645,5.76,188.18,188.16,2.6582]
[1736869455850,5.76,188.18,188.07,15.01610804]
[1736869456252,5.76,188.18,188.15,2.6583]
[1736869456748,5.76,188.18,188.07,15.01610804]
[1736869456749,8.418,188.18,188.13,2.6586]
[1736869458457,8.418,188.18,188.14,2.6585]
[1736869458658,2.6582,188.16,188.07,15.01610804]
[1736869459361,13.43300804,188.17,188.14,2.6585]
[1736869459554,13.43300804,188.17,188.07,15.01610804]
[1736869459956,5.76,188.19,188.07,15.01610804]
[1736869460457,5.76,188.19,188.15,2.6583]
[1736869461860,2.6578,188.19,188.15,2.6583]
[1736869462065,5.76,188.18,188.15,2.6583]
[1736869462265,5.76,188.18,188.07,15.01610804]
[1736869462470,5.76,188.18,188.16,2.6582]
[1736869463268,8.4178,188.19,188.16,2.6582]
[1736869463472,5.76,188.19,188.18,2.6579]
[1736869464370,5.76,188.19,188.11,3.3597]
[1736869464371,5.76,188.21,188.2,2.6576]
[1736869465371,16.09020804,188.23,188.2,2.6576]
[1736869465769,19.19300804,188.23,188.2,2.6576]
[1736869466469,13.43300804,188.26,188.16,13.43300804]
[1736869466673,5.76,188.25,188.17,1.5712]
[1736869466863,5.76,188.25,188.24,2.6569]
[1736869467574,5.76,188.28,188.27,2.6565]
[1736869468071,19.19300804,188.29,188.27,2.6565]
[1736869469366,13.43300804,188.29,188.27,2.6565]
[1736869469568,5.76,188.28,188.2,3.2972]
[1736869469765,8.4166,188.28,188.2,3.2972]
[1736869470568,8.4166,188.28,188.24,2.657]
[1736869472473,8.4166,188.28,188.2,3.2972]
[1736869472773,5.76,188.28,188.2,3.2972]
[1736869473169,2.6566,188.27,188.23,2.6572]
[1736869473971,5.76,188.28,188.23,2.6572]
[1736869474974,2.6567,188.27,188.23,2.6572]
[1736869479869,2.6567,188.27,188.23,2.6571]
[1736869481375,8.58946628,188.24,188.23,2.6571]
[1736869481882,8.58946628,188.24,188.2,1.6502]
[1736869482676,155.2298,188.33,188.23,8.58946628]
[1736869482975,146.98678704,188.39,188.32,8.58946628]
[1736869483278,48.59068705,188.39,188.38,8.58946628]
[1736869483478,26.46858705,188.39,188.38,11.24456628]
[1736869483872,8.58946628,188.45,188.38,8.58946628]
[1736869484280,8.58946628,188.45,188.41,2.6546]
[1736869485275,5.76,188.47,188.34,29.37471132]
[1736869485276,8.58946628,188.43,188.34,29.37471132]
[1736869485479,13.39989697,188.42,188.34,29.37471132]
[1736869485977,13.39989697,188.42,188.33,7.34367783]
[1736869486182,2.6547,188.41,188.34,2.6555]
[1736869486575,16.05459697,188.41,188.34,2.6555]
[1736869487170,16.05459697,188.41,188.35,2.6555]
[1736869488086,13.39989697,188.41,188.3,13.39989697]
[1736869488282,2.6548,188.4,188.3,13.39989697]
[1736869489082,2.6548,188.4,188.34,2.6556]
[1736869490077,1.6514,188.43,188.33,13.39989697]
[1736869490383,155.2298,188.45,188.36,13.39989697]
[1736869491582,21.81379697,188.47,188.41,2.6545]
[1736869491782,19.15989697,188.47,188.36,13.39989697]
[1736869491980,19.15989697,188.47,188.33,13.39989697]
[1736869492177,3.2234,188.46,188.33,13.39989697]
[1736869492374,3.2234,188.46,188.39,2.6549]
[1736869492375,2.6541,188.45,188.39,2.6549]
[1736869495586,2.6544,188.43,188.33,13.39989697]
[1736869496183,2.6544,188.43,188.37,2.6551]
[1736869496390,3.2234,188.46,188.36,13.39989697]
[1736869497184,3.2234,188.46,188.42,2.6544]
[1736869498590,8.9834,188.46,188.42,2.6544]
[1736869498790,11.6374,188.46,188.41,2.6546]
[1736869499883,25.03729697,188.46,188.4,2.6548]
[1736869500294,25.03729697,188.46,188.36,13.39989697]
[1736869500594,13.39989697,188.4,188.35,7.34367783]
[1736869500787,13.39989697,188.37,188.35,7.34367783]
[1736869500982,2.6554,188.36,188.35,7.34367783]
[1736869501183,13.39989697,188.37,188.34,22.03103349]
[1736869501397,155.2298,188.36,188.3,29.23829137]
[1736869501584,16.05599697,188.31,188.3,29.23829137]
[1736869501783,21.81599697,188.31,188.3,13.8722692]
[1736869501989,155.2298,188.3,188.28,18.84133242]
[1736869502391,155.2298,188.3,188.23,2.6571]
[1736869502392,2.6564,188.29,188.23,2.6571]
[1736869502589,2.6564,188.29,188.2,106.96546639]
[1736869502590,19.15989697,188.28,188.2,106.96546639]